bitfinex-derivatives/quotes_SOLF0:USTF0_20240910
["timestamp","ask_amount","ask_price","bid_price","bid_amount"]
[1725927939200,3.7318,133.95,133.9,10.33]
[1725927940194,3.7318,133.95,133.92,3.7325]
[1725927940403,3.7318,133.95,133.92,7.53738571]
[1725927941903,14.9279,134.06,133.92,7.53738571]
[1725927941904,22.35,134.03,133.94,10.33]
[1725927942104,22.35,134.03,133.92,3.80488571]
[1725927942105,10.33,134.0,133.95,10.33]
[1725927942302,32.68,134.0,133.95,10.33]
[1725927942505,10.33,133.99,133.94,10.33]
[1725927943618,3.7308,133.99,133.95,10.33]
[1725927943915,10.33,134.0,133.94,14.0619]
[1725927944114,3.7307,133.99,133.94,14.0619]
[1725927944319,10.33,134.0,133.94,14.0619]
[1725927945512,3.7311,133.98,133.94,3.7319]
[1725927945718,3.7311,133.98,133.94,14.0619]
[1725927949322,3.7311,133.98,133.94,3.7319]
[1725927949529,3.7311,133.98,133.95,10.33]
[1725927951124,3.7314,133.97,133.95,10.33]
[1725927953225,3.7315,133.96,133.95,10.33]
[1725927953421,10.33,134.0,133.95,10.33]
[1725927953621,3.7311,133.98,133.95,10.33]
[1725927953819,10.33,134.0,133.93,3.9993]
[1725927954017,10.33,134.0,133.95,10.33]
[1725927954627,3.7311,133.98,133.95,10.33]
[1725927955816,22.35,134.04,133.97,10.33]
[1725927956123,32.68,134.04,133.98,10.33]
[1725927956924,3.7302,134.01,133.98,10.33]
[1725927957621,3.7307,133.99,133.95,10.33]
[1725927957926,10.33,134.02,133.95,10.33]
[1725927958121,3.7308,133.99,133.95,10.33]
[1725927958327,10.33,133.99,133.93,3.9993]
[1725927958524,10.33,134.0,133.94,10.33]
[1725927958719,3.7311,133.98,133.94,10.33]
[1725927960429,10.33,133.99,133.94,10.33]
[1725927960922,3.7314,133.97,133.94,10.33]
[1725927962522,3.7315,133.96,133.94,10.33]
[1725927964032,14.09866069,133.98,133.93,2.7081]
[1725927964928,36.44866069,133.98,133.86,1.278]
[1725927965133,36.44866069,133.98,133.91,10.33]
[1725927965825,3.7322,133.94,133.91,10.33]
[1725927966627,10.33,133.96,133.87,2.6179]
[1725927966827,10.33,133.94,133.88,10.33]
[1725927967029,10.33,133.91,133.73,225.0]
[1725927967232,10.33,133.91,133.85,10.33]
[1725927967432,14.12004025,133.91,133.85,14.05992829]
[1725927967725,10.33,133.91,133.85,14.05992829]
[1725927967930,14.05096751,133.91,133.85,14.05992829]
[1725927968126,3.7338,133.88,133.85,14.05992829]
[1725927968732,10.33,133.91,133.85,14.05992829]
[1725927968935,3.7336,133.89,133.85,14.05992829]
[1725927969124,13.97905813,133.91,133.85,14.05992829]
[1725927969630,3.7336,133.89,133.85,14.05992829]
[1725927969834,3.7336,133.89,133.86,10.33]
[1725927970036,3.7332,133.9,133.86,10.33]
[1725927970232,3.7332,133.9,133.88,10.33]
[1725927970937,3.733,133.91,133.88,10.33]
[1725927975641,26.06307706,133.91,133.86,10.33]
[1725927976748,3.7336,133.89,133.86,10.33]
[1725927977040,32.73,133.92,133.87,10.33]
[1725927977544,3.7334,133.89,133.87,10.33]
[1725927978241,32.73,133.89,133.83,10.16400115]
[1725927978444,22.4,133.86,133.82,11.694]
[1725927978834,225.0,133.97,133.85,10.33]
[1725927979039,10.33,133.93,133.87,10.33]
[1725927979243,3.7331,133.91,133.87,10.33]
[1725927979444,3.7331,133.91,133.83,2.6252]
[1725927979636,3.7331,133.91,133.87,10.33]
[1725927979837,26.1331,133.91,133.87,10.33]
[1725927981244,22.4,133.92,133.87,14.0639]
[1725927982144,26.1329,133.91,133.87,14.0639]
[1725927982650,22.4,133.91,133.87,10.33]
[1725927983239,22.4,133.91,133.87,14.0639]
[1725927983741,26.1331,133.91,133.87,10.33]
[1725927984246,22.4,133.91,133.88,10.33]
[1725927985148,22.4,133.91,133.88,14.0636]
[1725927985541,22.4,133.91,133.88,10.33]
[1725927986641,22.4,133.91,133.88,14.0637]
[1725927986846,22.4,133.93,133.88,10.33]
[1725927987347,22.4,133.97,133.9,10.33]
[1725927987542,22.4,133.97,133.89,3.72310568]
[1725927987543,22.4,133.95,133.89,3.72310568]
[1725927987740,22.4,133.95,133.91,14.0627]
[1725927987946,14.08260856,133.99,133.93,10.33]
[1725927988144,14.08260856,133.99,133.89,3.80002487]
[1725927988145,330.18441552,134.04,133.94,10.33]
[1725927988347,3.7309,133.99,133.94,14.0618]
[1725927988549,22.4,133.97,133.88,1.3774]
[1725927988749,10.33,133.95,133.88,5.03704273]
[1725927988955,10.33,133.95,133.89,10.33]
[1725927989451,10.33,133.95,133.9,3.7212466]
[1725927989640,10.33,133.95,133.89,10.33]
[1725927990245,10.33,133.95,133.89,14.0900757]
[1725927990440,3.7322,133.94,133.9,10.33]
[1725927991654,10.33,133.95,133.9,10.33]
[1725927992047,32.73,133.95,133.89,10.33]
[1725927992755,32.73,133.95,133.89,13.98888863]
[1725927992955,3.7326,133.92,133.89,13.98888863]
[1725927994457,3.71303275,133.97,133.9,10.33]
[1725927994653,22.4,133.96,133.9,10.33]
[1725927994960,3.7325,133.93,133.9,10.33]
[1725927995358,32.73,133.96,133.9,10.33]
[1725927995654,3.7321,133.94,133.9,10.33]
[1725927996659,3.7321,133.94,133.89,7.39208863]
[1725927996660,22.4,133.97,133.93,10.33]
[1725927997457,3.7315,133.96,133.93,10.33]
[1725928000169,3.7319,133.95,133.92,10.33]
[1725928001158,22.4,133.95,133.91,10.33]
[1725928001364,22.4,133.97,133.91,10.33]
[1725928001560,22.4,133.97,133.89,3.7333]
[1725928001762,3.7325,133.93,133.89,14.0633]
[1725928001954,3.7325,133.93,133.89,14.07626284]
[1725928002160,32.73,133.94,133.89,3.74626284]
[1725928002553,3.7327,133.92,133.89,3.74626284]
[1725928004368,32.73,133.94,133.88,12.9976]
[1725928004764,32.73,133.94,133.88,16.75086226]
[1725928004961,3.7329,133.91,133.88,16.75086226]
[1725928005369,3.7329,133.91,133.88,20.48456226]
[1725928006963,3.7327,133.92,133.88,20.48456226]
[1725928008164,3.733,133.91,133.88,20.48456226]
[1725928011775,22.4,134.0,133.9,10.33]
[1725928011971,32.73,133.97,133.9,10.33]
[1725928012571,22.4,133.95,133.88,6.42086226]
[1725928012766,22.4,133.95,133.89,10.33]
[1725928013763,22.4,133.94,133.89,10.33]
[1725928013975,22.4,133.94,133.88,10.15446226]
[1725928014176,3.7328,133.92,133.89,10.33]
[1725928015871,3.7329,133.91,133.89,10.33]
[1725928017376,22.4,133.95,133.9,10.33]
[1725928017578,22.4,133.97,133.92,10.33]
[1725928017784,32.73,133.97,133.91,10.33]
[1725928017979,3.7321,133.94,133.91,10.33]
[1725928018487,3.7321,133.94,133.89,14.0634]
[1725928018870,3.7324,133.93,133.89,14.0634]
[1725928019076,3.7324,133.93,133.88,6.42086226]
[1725928019077,22.4,133.93,133.88,20.48446226]
[1725928019281,22.4,133.93,133.88,16.75086226]
[1725928020080,22.4,133.91,133.88,12.9976]
[1725928020384,3.7328,133.92,133.88,12.9976]
[1725928020576,26.1328,133.92,133.88,12.9976]
[1725928021179,22.4,133.9,133.87,1.3315]
[1725928021481,32.73,133.9,133.84,14.04535872]
[1725928021780,32.73,133.9,133.8,2.6641]
[1725928021781,22.4,133.9,133.85,10.33]
[1725928022285,26.1332,133.9,133.85,14.0643]
[1725928022478,26.1332,133.9,133.85,15.3514]
[1725928022679,26.1332,133.9,133.85,16.6369]
[1725928023281,26.1332,133.9,133.85,6.3069]
[1725928023489,26.1332,133.9,133.86,10.33]
[1725928023984,26.1327,133.92,133.87,10.33]
[1725928024187,22.4,133.92,133.87,10.33]
[1725928024383,22.4,133.92,133.88,3.7337]
[1725928024783,22.4,133.92,133.89,10.33]
[1725928024987,22.4,133.99,133.91,10.33]
[1725928025290,22.4,133.96,133.91,10.33]
[1725928025483,3.7319,133.95,133.91,10.33]
[1725928025790,22.4,133.96,133.93,10.33]
[1725928026289,3.7317,133.96,133.93,10.33]
[1725928026502,22.4,133.97,133.93,10.33]
[1725928026682,32.73,133.97,133.91,14.03834763]
[1725928027081,3.7318,133.95,133.91,17.77124763]
[1725928027286,32.73,133.97,133.91,3.70834763]
[1725928027578,3.7325,133.93,133.88,3.7335]
[1725928027781,3.7325,133.93,133.89,10.33]
[1725928028687,3.7321,133.94,133.89,14.0634]
[1725928029693,26.1321,133.94,133.89,14.0634]
[1725928030088,26.1325,133.93,133.88,14.0637]
[1725928030886,22.4,133.93,133.88,10.33]
[1725928031388,26.1327,133.92,133.88,14.0637]
[1725928031687,22.4,133.92,133.87,10.33]
[1725928032194,22.4,133.93,133.88,10.33]
[1725928033894,26.1325,133.93,133.88,10.33]
[1725928034089,22.4,133.94,133.9,10.33]
[1725928035088,26.1322,133.94,133.9,10.33]
[1725928037997,3.7323,133.93,133.9,10.33]
[1725928038187,26.1323,133.93,133.9,10.33]
[1725928039991,22.4,133.9,133.85,3.8788]
[1725928040185,22.4,133.9,133.85,14.2088]
[1725928040789,3.7336,133.89,133.85,14.2088]
[1725928041088,22.4,133.9,133.85,14.2088]
[1725928041696,26.1333,133.9,133.86,3.7342]
[1725928042494,3.7333,133.9,133.87,10.33]
[1725928042897,3.733,133.91,133.87,10.33]
[1725928043595,26.133,133.91,133.87,10.33]
[1725928045999,32.73,133.92,133.85,3.8788]
[1725928046190,32.73,133.92,133.86,10.33]
[1725928046392,3.7333,133.9,133.86,10.33]
[1725928047299,26.1329,133.91,133.86,10.33]
[1725928047596,22.4,133.91,133.86,10.33]
[1725928049194,3.7332,133.9,133.86,14.0641]
[1725928049688,3.7331,133.91,133.87,14.0639]
[1725928050805,22.4,134.0,133.9,10.33]
[1725928051105,22.4,133.95,133.9,10.33]
[1725928051296,26.1322,133.94,133.9,10.33]
[1725928052297,3.7318,133.95,133.91,17.78805136]
[1725928052501,22.4,133.95,133.91,17.78805136]
[1725928052906,108.92757781,134.01,133.85,3.8788]
[1725928052907,10.33,133.92,133.85,3.8788]
[1725928053106,10.33,133.88,133.77,34.12718191]
[1725928053306,3.7345,133.86,133.82,10.33]
[1725928053803,10.33,133.86,133.78,4.0351]
[1725928054008,10.33,133.86,133.79,10.33]
[1725928054193,10.33,133.86,133.79,14.0662]
[1725928054399,3.7348,133.84,133.79,14.0662]
[1725928054997,3.7348,133.84,133.78,7.79209611]
[1725928054998,3.7346,133.85,133.83,10.33]
[1725928055203,10.33,133.88,133.83,10.33]
[1725928055508,3.7343,133.86,133.83,10.33]
[1725928056010,3.7342,133.87,133.83,10.33]
[1725928056203,3.7342,133.87,133.82,3.7353]
[1725928056803,3.7343,133.86,133.82,3.7353]
[1725928058903,16.13,133.91,133.83,3.7351]
[1725928059104,42.19519308,133.91,133.81,16.13]
[1725928059409,3.7338,133.88,133.81,16.13]
[1725928060106,3.7338,133.88,133.83,3.7349]
[1725928060299,3.734,133.87,133.83,3.7349]
[1725928061009,3.7338,133.88,133.83,3.7349]
[1725928065817,22.4,133.92,133.83,16.13]
[1725928066116,3.67163679,133.92,133.84,2.6203]
[1725928066317,3.7329,133.91,133.85,16.13]
[1725928066516,22.4,133.93,133.85,19.78781398]
[1725928066517,26.099656,133.93,133.85,19.78781398]
[1725928066816,22.4,133.93,133.85,19.78781398]
[1725928067112,26.16167184,133.94,133.87,3.7338]
[1725928067312,22.4,133.94,133.87,3.7338]
[1725928067619,26.14149801,133.94,133.87,3.7338]
[1725928068219,22.4,133.92,133.87,3.7338]
[1725928068517,22.4,133.92,133.88,3.7336]
[1725928068707,26.1327,133.92,133.88,3.7336]
[1725928068909,22.4,133.92,133.85,19.78781398]
[1725928069309,22.4,133.93,133.87,3.7338]
[1725928070115,3.7329,133.91,133.87,3.7338]
[1725928073918,22.4,133.9,133.86,3.7342]
[1725928074124,22.4,133.9,133.84,3.9102]
[1725928074626,3.7336,133.89,133.85,3.7344]
[1725928075323,3.7337,133.88,133.85,3.7344]
[1725928075524,26.10293529,133.93,133.85,3.7344]
[1725928076123,3.7336,133.89,133.85,3.7344]
[1725928077328,3.7336,133.89,133.86,3.7342]
[1725928078120,3.7336,133.89,133.86,14.0542]
[1725928081020,3.7341,133.87,133.84,7.6449]
[1725928081227,22.4,133.88,133.84,2.6203]
[1725928081429,32.72,133.88,133.84,2.6203]
[1725928082028,26.134,133.87,133.84,2.6203]
[1725928082230,22.4,133.87,133.84,2.6203]
[1725928082424,32.72,133.87,133.82,10.32]
[1725928082834,22.4,133.87,133.83,10.32]
[1725928083018,10.32,133.88,133.83,10.32]
[1725928084330,3.7341,133.87,133.83,14.0549]
[1725928085329,3.7341,133.87,133.83,10.32]
[1725928085528,3.7344,133.86,133.83,10.32]
[1725928086523,3.7341,133.87,133.83,14.0551]
[1725928086922,3.7341,133.87,133.84,10.32]
[1725928088626,3.7338,133.88,133.84,14.0548]
[1725928089631,32.72,133.9,133.84,10.32]
[1725928089831,10.32,133.89,133.83,3.735]
[1725928090031,32.72,133.89,133.83,14.055]
[1725928090535,3.7341,133.87,133.83,14.055]
[1725928093334,3.7343,133.86,133.83,10.32]
[1725928094635,3.7343,133.86,133.82,3.7353]
[1725928094945,3.7346,133.85,133.81,14.0556]
[1725928096241,10.32,133.85,133.8,2.6599]
[1725928096933,3.7352,133.83,133.8,2.6599]
[1725928097430,10.32,133.85,133.8,2.6599]
[1725928097431,36.52155642,133.85,133.8,2.6599]
[1725928098034,7.4655,133.92,133.77,14.0566]
[1725928098035,10.32,133.83,133.77,14.0566]
[1725928098337,10.32,133.83,133.77,10.32]
[1725928098636,10.32,133.83,133.78,3.65995545]
[1725928099338,10.32,133.84,133.78,17.71635545]
[1725928099741,14.12912827,133.84,133.78,17.71635545]
[1725928099933,3.7356,133.82,133.78,17.71635545]
[1725928100133,36.52912827,133.84,133.78,17.71635545]
[1725928100341,36.52912827,133.84,133.78,13.97995545]
[1725928100645,3.7359,133.81,133.78,13.97995545]
[1725928101043,3.7359,133.81,133.78,3.65995545]
[1725928101236,22.4,133.82,133.71,3.9793]
[1725928101437,22.4,133.82,133.71,7.78693362]
[1725928101633,22.4,133.82,133.76,10.32]
[1725928101846,22.4,133.82,133.76,14.057]
[1725928101847,3.7361,133.8,133.76,14.057]
[1725928102944,22.4,133.83,133.78,10.32]
[1725928103337,22.4,133.84,133.8,10.32]
[1725928103531,3.7352,133.83,133.8,10.32]
[1725928103732,3.7352,133.83,133.79,3.7361]
[1725928103733,22.4,133.84,133.79,10.32]
[1725928104548,22.4,133.81,133.78,10.32]
[1725928105544,3.736,133.8,133.78,10.32]
[1725928106043,26.1357,133.81,133.78,10.32]
[1725928107242,22.4,133.8,133.71,3.9793]
[1725928107543,22.4,133.82,133.78,10.32]
[1725928108247,26.12346269,133.83,133.78,10.32]
[1725928108441,22.4,133.81,133.78,14.0565]
[1725928109545,22.4,133.83,133.78,14.0565]
[1725928109740,3.7356,133.82,133.78,14.0565]
[1725928109941,26.1356,133.82,133.78,14.0565]
[1725928110136,26.1356,133.82,133.79,14.0562]
[1725928110341,22.4,133.82,133.79,14.0562]
[1725928110647,26.1352,133.83,133.79,14.0562]
[1725928111146,3.7349,133.84,133.81,10.32]
[1725928111648,26.1349,133.84,133.81,10.32]
[1725928111838,26.1347,133.85,133.81,14.0556]
[1725928112038,22.4,133.85,133.81,10.32]
[1725928112749,3.735,133.84,133.81,10.32]
[1725928112948,26.135,133.84,133.81,10.32]
[1725928113149,22.4,133.84,133.81,10.32]
[1725928113439,26.1351,133.83,133.81,10.32]
[1725928115844,22.4,133.83,133.81,10.32]
[1725928116038,22.4,133.85,133.82,10.32]
[1725928116636,26.1345,133.85,133.82,10.32]
[1725928117040,22.4,133.86,133.83,10.32]
[1725928117245,10.32,133.89,133.83,10.32]
[1725928117246,22.4,133.87,133.83,14.0551]
[1725928118043,3.7341,133.87,133.83,14.0551]
[1725928119650,22.4,133.91,133.86,10.32]
[1725928119843,10.32,133.94,133.88,10.32]
[1725928120052,22.4,133.93,133.88,10.32]
[1725928120645,22.4,133.93,133.88,12.9544]
[1725928121045,26.1324,133.93,133.88,16.6881]
[1725928121654,26.1324,133.93,133.88,12.9544]
[1725928122448,3.7326,133.92,133.88,12.9544]
[1725928123559,3.7326,133.92,133.88,2.6344]
[1725928123749,3.733,133.91,133.88,2.6344]
[1725928124455,3.7326,133.92,133.88,2.6344]
[1725928125056,3.7329,133.91,133.88,2.6344]
[1725928125243,16.12,133.94,133.88,2.6344]
[1725928125648,3.7331,133.91,133.88,2.6344]
[1725928125850,16.12,133.94,133.88,2.6344]
[1725928126260,3.7331,133.91,133.88,2.6344]
[1725928126462,16.12,133.94,133.88,2.6344]
[1725928126854,3.7332,133.9,133.88,2.6344]
[1725928128552,3.7332,133.9,133.86,7.50921778]
[1725928128758,3.7332,133.9,133.86,3.77501778]
[1725928128955,3.7332,133.9,133.85,5.0526]
[1725928129458,3.82058091,133.9,133.85,1.3181]
[1725928129656,38.52,133.93,133.85,1.3181]
[1725928130559,38.52,133.93,133.85,5.0526]
[1725928130764,38.52,133.93,133.85,8.78616279]
[1725928130969,3.7333,133.9,133.85,8.78616279]
[1725928131170,3.71777979,133.9,133.85,1.3181]
[1725928131464,38.52,133.89,133.8,16.12]
[1725928131666,38.52,133.89,133.79,4.0444]
[1725928131868,42.29194216,133.89,133.79,4.0444]
[1725928132272,3.7348,133.85,133.8,3.7359]
[1725928132461,3.7348,133.85,133.8,7.50261269]
[1725928133569,3.7354,133.82,133.79,2.6557]
[1725928133769,38.52,133.85,133.76,16.12]
[1725928134368,3.7358,133.81,133.77,3.7366]
[1725928136075,22.4,133.82,133.74,16.12]
[1725928136265,16.12,133.83,133.74,16.12]
[1725928136470,3.7363,133.79,133.74,16.12]
[1725928136672,3.7363,133.79,133.75,3.7371]
[1725928138374,3.7365,133.78,133.75,3.7371]
[1725928138871,42.2308522,133.83,133.75,3.7371]
[1725928139274,16.12,133.81,133.72,4.0444]
[1725928139575,38.52,133.79,133.72,4.0444]
[1725928139980,26.17158198,133.79,133.72,4.0444]
[1725928140482,42.29158198,133.79,133.72,4.0444]
[1725928140673,42.29158198,133.79,133.72,2.6557]
[1725928140980,3.7373,133.76,133.72,2.6557]
[1725928141180,3.7373,133.76,133.72,6.3937]
[1725928141476,16.12,133.79,133.72,2.6557]
[1725928141672,16.12,133.79,133.72,6.3938]
[1725928141877,3.737,133.77,133.72,6.3938]
[1725928142072,3.737,133.77,133.72,2.6557]
[1725928142472,3.737,133.77,133.72,6.3938]
[1725928142674,3.7372,133.76,133.72,2.6557]
[1725928143278,26.13363864,133.78,133.72,2.6557]
[1725928143582,22.4,133.78,133.72,2.6557]
[1725928144177,3.77177896,133.77,133.72,2.6557]
[1725928144379,3.7373,133.76,133.72,2.6557]
[1725928145285,3.7373,133.76,133.7,5.17281498]
[1725928145286,42.29177896,133.77,133.69,3.78262278]
[1725928145587,3.7381,133.73,133.67,3.7395]
[1725928145884,16.12,133.75,133.68,1.3244]
[1725928146183,3.7381,133.73,133.68,5.0635]
[1725928146586,3.7381,133.73,133.69,3.77065719]
[1725928147083,3.7381,133.73,133.69,8.90685719]
[1725928147380,16.12,133.75,133.69,8.90685719]
[1725928147381,19.7917425,133.77,133.69,1.3974]
[1725928147679,38.52,133.79,133.69,2.6856]
[1725928147886,16.12,133.76,133.69,2.6856]
[1725928148082,19.93796895,133.76,133.69,10.1174594]
[1725928148278,42.33796895,133.76,133.69,10.1174594]
[1725928148876,3.7378,133.74,133.69,10.1174594]
[1725928149076,3.7378,133.74,133.7,3.7386]
[1725928150184,14.0878,133.74,133.69,10.1175594]
[1725928150486,10.35,133.73,133.69,1.3974]
[1725928151080,3.7386,133.71,133.69,1.3974]
[1725928151279,3.7386,133.71,133.68,5.09823571]
[1725928152382,14.0886,133.71,133.68,5.09823571]
[1725928152783,10.35,133.7,133.66,1.2776]
[1725928152979,10.35,133.7,133.66,4.94486187]
[1725928153183,3.7391,133.69,133.66,1.2776]
[1725928153384,10.35,133.67,133.6,1.2741]
[1725928153684,10.35,133.67,133.61,10.35]
[1725928153882,22.4,133.75,133.64,10.35]
[1725928154089,22.4,133.75,133.65,1.2776]
[1725928154090,16.15,133.72,133.65,1.2776]
[1725928154393,38.55,133.72,133.65,1.2776]
[1725928154778,16.15,133.7,133.65,1.2776]
[1725928154985,3.7395,133.68,133.65,1.2776]
[1725928155191,16.15,133.7,133.65,1.2776]
[1725928155384,3.74,133.66,133.62,3.7409]
[1725928156383,3.7397,133.67,133.62,3.7409]
[1725928156583,38.55,133.7,133.62,3.7409]
[1725928156790,3.7398,133.67,133.62,3.7409]
[1725928156988,3.7398,133.67,133.63,3.7406]
[1725928157382,3.7398,133.67,133.61,2.6209]
[1725928157591,38.55,133.7,133.61,6.362]
[1725928157890,16.15,133.68,133.61,2.6209]
[1725928158088,3.7401,133.66,133.61,6.362]
[1725928158495,16.15,133.68,133.61,2.6209]
[1725928158789,16.15,133.7,133.61,2.6209]
[1725928158996,16.15,133.72,133.61,18.7709]
[1725928159190,16.15,133.72,133.63,3.7405]
[1725928159392,16.15,133.71,133.63,3.7405]
[1725928160090,3.7397,133.67,133.63,3.7405]
[1725928160396,3.7398,133.67,133.63,3.7405]
[1725928160595,16.15,133.71,133.61,18.7709]
[1725928161095,3.7401,133.66,133.61,22.512]
[1725928161988,22.4,133.73,133.61,18.7709]
[1725928162190,16.15,133.72,133.61,18.7709]
[1725928162794,3.7392,133.69,133.64,3.7402]
[1725928162994,3.7392,133.69,133.65,1.3222]
[1725928163290,3.72726876,133.75,133.65,1.3222]
[1725928163291,3.7397,133.67,133.65,1.3222]
[1725928165598,38.55,133.7,133.61,2.6209]
[1725928165894,38.55,133.7,133.61,4.0202]
[1725928166095,3.7402,133.65,133.61,4.0202]
[1725928166298,38.55,133.68,133.61,4.0202]
[1725928166686,3.7404,133.65,133.61,4.0202]
[1725928167286,3.7404,133.64,133.61,4.0202]
[1725928168098,38.55,133.68,133.61,4.0202]
[1725928168396,38.55,133.66,133.61,2.6769]
[1725928168692,38.55,133.66,133.6,3.7160443]
[1725928168897,38.55,133.66,133.58,2.6822]
[1725928169099,3.7412,133.62,133.58,6.37485637]
[1725928169398,3.7412,133.62,133.58,2.6822]
[1725928169898,3.7412,133.62,133.58,6.48402969]
[1725928170098,3.7413,133.61,133.58,6.48402969]
[1725928170284,16.15,133.66,133.58,6.48402969]
[1725928170794,3.7405,133.64,133.59,3.7416]
[1725928170999,16.15,133.66,133.59,3.7416]
[1725928171298,3.7412,133.62,133.58,6.48402969]
[1725928171490,38.55,133.66,133.58,6.48402969]
[1725928171891,3.7412,133.62,133.58,6.48402969]
[1725928172401,3.7413,133.61,133.58,6.48402969]
[1725928173401,38.55,133.64,133.58,2.6822]
[1725928173694,38.55,133.64,133.58,6.42882997]
[1725928173901,38.55,133.64,133.58,2.6822]
[1725928174101,3.7417,133.6,133.58,2.6822]
[1725928174498,3.7418,133.59,133.58,6.39214968]
[1725928174803,10.35,133.61,133.58,2.6822]
[1725928175299,10.35,133.61,133.58,6.38878108]
[1725928175495,3.7417,133.6,133.58,2.6822]
[1725928175689,10.35,133.6,133.58,2.6822]
[1725928175889,10.35,133.6,133.55,14.0928]
[1725928175890,10.35,133.6,133.55,3.7428]
[1725928176301,10.35,133.6,133.54,5.0557]
[1725928176500,10.35,133.6,133.55,1.4002]
[1725928177104,3.7421,133.58,133.55,1.4002]
[1725928177402,10.35,133.6,133.55,5.1431]
[1725928177898,3.742,133.59,133.55,5.1431]
[1725928178105,3.7125697,133.66,133.56,14.0925]
[1725928178291,3.7415,133.6,133.56,3.7425]
[1725928178497,10.35,133.61,133.55,1.4002]
[1725928178691,10.35,133.59,133.55,5.143]
[1725928179203,10.35,133.59,133.55,5.07300273]
[1725928179397,26.19332066,133.65,133.56,3.7425]
[1725928179603,14.0917,133.6,133.56,3.7425]
[1725928180005,10.35,133.59,133.55,5.07300273]
[1725928180304,3.7423,133.58,133.55,5.07300273]
[1725928180911,10.35,133.58,133.55,5.07300273]
[1725928182203,7.4796,133.67,133.4,7.4943]
[1725928182500,10.35,133.56,133.51,10.35]
[1725928182701,10.35,133.56,133.51,14.01912822]
[1725928182903,3.7431,133.55,133.51,17.76312822]
[1725928183201,10.35,133.56,133.51,3.66912822]
[1725928183506,10.35,133.55,133.48,1.3378]
[1725928183804,10.35,133.57,133.51,10.35]
[1725928183994,3.743,133.55,133.51,10.35]
[1725928184199,3.743,133.55,133.51,11.6307]
[1725928184602,3.743,133.55,133.51,19.13967483]
[1725928185107,3.7427,133.56,133.51,19.13967483]
[1725928186108,7.4796,133.67,133.52,10.35]
[1725928186109,22.4,133.59,133.52,10.35]
[1725928186407,10.35,133.57,133.52,10.35]
[1725928187316,10.35,133.56,133.51,5.04567483]
[1725928187705,3.7432,133.54,133.51,5.04567483]
[1725928188415,10.35,133.54,133.51,5.04567483]
[1725928188711,10.35,133.54,133.51,1.2807]
[1725928188906,3.7435,133.53,133.51,1.2807]
[1725928189308,22.4,133.56,133.51,1.2807]
[1725928189503,10.35,133.55,133.51,1.2807]
[1725928189706,3.7431,133.55,133.51,1.2807]
[1725928189907,22.4,133.64,133.51,1.2807]
[1725928190200,3.7433,133.54,133.51,1.2807]
[1725928191111,3.7435,133.53,133.51,1.2807]
[1725928191316,10.35,133.54,133.51,1.2807]
[1725928191614,22.4,133.6,133.51,1.2807]